fUSD/lending_fUSD_20250105
["ID","MTS","AMOUNT","RATE_DAILY","PERIOD"]
[347665636,1736040634401,-459.0,9.998e-05,2]
[347665637,1736040634411,-459.0,9.998e-05,2]
[347665638,1736040634420,-459.0,9.998e-05,2]
[347665639,1736040634430,-459.0,9.998e-05,2]
[347665640,1736040634439,-459.0,9.998e-05,2]
[347665641,1736040634448,-459.0,9.998e-05,2]
[347665642,1736040634458,-459.0,9.998e-05,2]
[347665643,1736040634467,-459.0,9.998e-05,2]
[347665644,1736040634477,-459.0,9.998e-05,2]
[347665645,1736040634486,-459.0,9.998e-05,2]
[347665646,1736040634496,-459.0,9.998e-05,2]
[347665647,1736040634505,-459.0,9.998e-05,2]
[347665648,1736040634514,-459.0,9.998e-05,2]
[347665649,1736040634524,-326.0,9.998e-05,2]
[347665650,1736040634533,-326.0,9.998e-05,2]
[347665651,1736040634542,-326.0,9.998e-05,2]
[347665652,1736040634551,-326.0,9.998e-05,2]
[347665653,1736040634560,-304.32025868,9.998e-05,2]
[347665654,1736040634574,-21.67974132,9.998e-05,2]
[347665655,1736040634583,-326.0,9.998e-05,2]
[347665656,1736040634592,-326.0,9.998e-05,2]
[347665657,1736040634602,-326.0,9.998e-05,2]
[347665658,1736040634610,-326.0,9.998e-05,2]
[347665659,1736040634620,-326.0,9.998e-05,2]
[347665660,1736040634630,-326.0,9.998e-05,2]
[347665661,1736040634639,-326.0,9.998e-05,2]
[347665662,1736040634648,-326.0,9.998e-05,2]
[347665663,1736040634657,-326.0,9.998e-05,2]
[347665664,1736040634667,-459.0,9.998e-05,2]
[347665665,1736040634677,-459.0,9.998e-05,2]
[347665666,1736040634686,-459.0,9.998e-05,2]
[347665667,1736040634696,-459.0,9.998e-05,2]
[347665668,1736040634705,-459.0,9.998e-05,2]
[347665669,1736040634715,-459.0,9.998e-05,2]
[347665670,1736040634724,-459.0,9.998e-05,2]
[347665671,1736040634734,-459.0,9.998e-05,2]
[347665672,1736040634743,-459.0,9.998e-05,2]
[347665673,1736040634752,-214.17540096,9.998e-05,2]
[347665674,1736040634764,-244.82459904,9.998e-05,2]
[347665675,1736040634773,-142.82040096,9.998e-05,2]
[347665676,1736040634784,-316.17959904,9.998e-05,2]
[347665677,1736040634793,-459.0,9.998e-05,2]
[347665678,1736040634803,-459.0,9.998e-05,2]
[347665679,1736040634813,-459.0,9.998e-05,2]
[347665680,1736040634823,-326.0,9.998e-05,2]
[347665681,1736040634833,-326.0,9.998e-05,2]
[347665682,1736040634842,-326.0,9.998e-05,2]
[347665683,1736040634851,-326.0,9.998e-05,2]
[347665684,1736040634860,-326.0,9.998e-05,2]
[347665685,1736040634870,-176.82040096,9.998e-05,2]
[347665686,1736040634881,-149.17959904,9.998e-05,2]
[347665687,1736040634891,-326.0,9.998e-05,2]
[347665688,1736040634900,-326.0,9.998e-05,2]
[347665689,1736040634910,-248.82040096,9.998e-05,2]
[347665692,1736040638283,-387.536,9.862e-05,2]
[347665693,1736040638391,-113.78748198,9.862e-05,2]
[347665694,1736040638400,-489.78507734,9.871e-05,2]
[347665695,1736040638413,-902.20840704,9.871e-05,2]
[347665696,1736040638422,-1.76659296,9.998e-05,2]
[347665697,1736040638434,-75.41300608,9.998e-05,2]
[347665698,1736040638443,-326.0,9.998e-05,2]
[347665699,1736040638452,-326.0,9.998e-05,2]
[347665700,1736040638460,-131.73048942,9.998e-05,2]
[347665701,1736040638471,-194.26951058,9.998e-05,2]
[347665702,1736040638480,-326.0,9.998e-05,2]
[347665703,1736040638490,-326.0,9.998e-05,2]
[347665704,1736040638499,-459.0,9.998e-05,2]
[347665705,1736040638508,-459.0,9.998e-05,2]
[347665706,1736040638517,-459.0,9.998e-05,2]
[347665707,1736040638526,-459.0,9.998e-05,2]
[347665708,1736040638535,-441.49705381,9.998e-05,2]
[347665709,1736040638550,-17.50294619,9.998e-05,2]
[347665710,1736040638559,-459.0,9.998e-05,2]
[347665711,1736040638568,-459.0,9.998e-05,2]
[347665712,1736040638577,-459.0,9.998e-05,2]
[347665713,1736040638586,-459.0,9.998e-05,2]
[347665714,1736040638595,-459.0,9.998e-05,2]
[347665715,1736040638608,-459.0,9.998e-05,2]
[347665716,1736040638617,-459.0,9.998e-05,2]
[347665717,1736040638627,-459.0,9.998e-05,2]
[347665718,1736040638636,-459.0,9.998e-05,2]
[347665719,1736040638646,-326.0,9.998e-05,2]
[347665720,1736040638655,-326.0,9.998e-05,2]
[347665721,1736040638664,-326.0,9.998e-05,2]
[347665722,1736040638673,-326.0,9.998e-05,2]
[347665723,1736040638683,-326.0,9.998e-05,2]
[347665724,1736040638692,-326.0,9.998e-05,2]
[347665725,1736040638704,-326.0,9.998e-05,2]
[347665726,1736040638714,-326.0,9.998e-05,2]
[347665727,1736040638723,-326.0,9.998e-05,2]
[347665728,1736040638733,-326.0,9.998e-05,2]
[347665729,1736040638743,-326.0,9.998e-05,2]
[347665730,1736040638752,-326.0,9.998e-05,2]
[347665731,1736040638762,-326.0,9.998e-05,2]
[347665732,1736040638771,-326.0,9.998e-05,2]
[347665733,1736040638780,-500.0,0.0001,2]
[347665734,1736040638789,-176.53494106,0.0001,2]
[347665735,1736040638798,-49546.38231281,0.0001,2]
[347665736,1736040638809,-757.5,0.0001,2]
[347665737,1736040638821,-59888.74347757,0.0001,2]
[347665738,1736040638831,-151.30759635,0.0001,2]
[347665739,1736040638841,-353.28201063,0.0001,2]
[347665740,1736040638850,-160.65304776,0.0001,2]
[347665741,1736040638860,-500.0,0.0001,2]
[347665742,1736040638869,-500.0,0.0001,2]
[347665743,1736040638879,-222.91,0.00010137,2]
[347665744,1736040638890,-1561.81,0.0001036,2]
[347665745,1736040638899,-637.871,0.0001036,2]
[347665746,1736040638909,-150.619,0.0001036,2]
[347665747,1736040638919,-1105.896,0.0001036,2]
[347665748,1736040638929,-110.12947193,0.0001037,2]
[347665749,1736040638940,-2610.01535674,0.0001037,2]
[347665751,1736040640480,-664.47406271,0.0001037,2]
[347665752,1736040640774,-272.20457255,0.0001037,2]
[347665753,1736040640785,-644.68702589,0.0001037,2]
[347665754,1736040640797,-610.45399999,0.0001037,2]
[347665755,1736040640808,-309.85348945,0.0001037,2]
[347665756,1736040640819,-2974.49571476,0.0001037,2]
[347665768,1736040644069,-411.14884864,0.0001037,2]
[347665806,1736040646334,-1000.0,0.0001037,2]
[347665807,1736040646456,-4816.38699822,0.0001037,2]
[347665808,1736040646468,-1204.90204921,0.0001037,2]
[347665809,1736040646480,-8271.24840991,0.0001037,2]
[347665810,1736040646489,-492.92,0.00010451,2]
[347665811,1736040646499,-152.53,0.00010451,2]
[347665812,1736040646508,-496.11,0.00010451,2]
[347665813,1736040646517,-151.79,0.00010451,2]
[347665814,1736040646527,-492.5,0.00010451,2]
[347665815,1736040646536,-495.85,0.00010451,2]
[347665816,1736040646546,-152.97,0.00010451,2]
[347665817,1736040646555,-6110.46113069,0.00010451,2]
[347665818,1736040646564,-500.0,0.00010527,2]
[347665819,1736040646573,-500.0,0.00010527,2]
[347665820,1736040646583,-431.22919901,0.00010527,2]
[347665821,1736040646593,-4530.29,0.00010528,2]
[347665822,1736040646602,-250.0,0.00010549,2]
[347665823,1736040646612,-1420.77,0.00010569,2]
[347665824,1736040646621,-430.81,0.00010574,2]
[347665825,1736040646631,-1000.0,0.00010574,2]
[347665833,1736040646793,-166.54,0.00010587,2]
[347665835,1736040646803,-200.0,0.00010611,2]
[347665837,1736040646813,-9684.17461658,0.00010628,4]
[347665839,1736040646822,-250.0,0.00010679,2]
[347665840,1736040646832,-150.0,0.000108,2]
[347665842,1736040646841,-500.0,0.00010801,2]
[347665845,1736040646851,-167.25,0.00010831,2]
[347665847,1736040646861,-250.0,0.00010833,2]
[347665849,1736040646871,-300.0,0.000109,3]
[347665851,1736040646880,-152.68,0.00010951,2]
[347665852,1736040646890,-151.42,0.00010951,2]
[347665854,1736040646899,-150.4,0.00010951,2]
[347665856,1736040646909,-400.0,0.00010986,2]
[347665857,1736040646919,-550.0,0.00011,2]
[347665858,1736040646928,-700.0,0.00011,4]
[347665859,1736040646939,-500.0,0.00011075,2]
[347665860,1736040646948,-1100.0,0.000111,4]
[347665861,1736040646959,-1400.0,0.000112,4]
[347665862,1736040646969,-600.0,0.00011232,2]
[347665863,1736040646979,-383.491,0.0001124,2]
[347665864,1736040646989,-940.241,0.000113,2]
[347665865,1736040647000,-302.9579,0.000113,2]
[347665866,1736040647010,-7275.7626,0.000113,2]
[347665867,1736040647021,-8009.53220692,0.000113,2]
[347665868,1736040647033,-21164.21959308,0.000113,2]
[347665869,1736040647043,-1800.0,0.000113,4]
[347665870,1736040647053,-500.0,0.00011349,2]
[347665871,1736040647062,-4824.8813,0.000114,2]
[347665872,1736040647072,-300.0,0.000114,4]
[347665873,1736040647082,-300.0,0.000115,4]
[347665874,1736040647091,-500.0,0.00011506,2]
[347665875,1736040647101,-7083.4041,0.00011571,2]
[347665876,1736040647113,-300.0,0.000116,4]
[347665877,1736040647122,-150.0,0.00011611,2]
[347665878,1736040647132,-150.0,0.00011617,2]
[347665879,1736040647141,-150.0,0.0001162,2]
[347665880,1736040647150,-500.0,0.00011623,2]
[347665881,1736040647159,-150.0,0.00011625,2]
[347665882,1736040647168,-150.0,0.00011629,2]
[347665883,1736040647177,-150.0,0.00011633,2]
[347665884,1736040647187,-150.0,0.00011643,2]
[347665885,1736040647197,-150.0,0.00011668,2]
[347665886,1736040647206,-150.0,0.00011668,2]
[347665887,1736040647215,-150.0,0.0001167,2]
[347665888,1736040647225,-5019.6395,0.00011671,2]
[347665889,1736040647235,-150.0,0.00011672,2]
[347665890,1736040647244,-265.8709,0.00011672,2]
[347665891,1736040647254,-150.0,0.00011675,2]
[347665892,1736040647264,-150.0,0.00011678,2]
[347665893,1736040647274,-150.0,0.0001169,2]
[347665894,1736040647283,-150.0,0.00011694,2]
[347665895,1736040647292,-300.0,0.000117,4]
[347665896,1736040647302,-8924.0,0.000117,2]
[347665897,1736040647311,-3000.0,0.0001171,2]
[347665898,1736040647321,-150.0,0.00011714,2]
[347665899,1736040647330,-244.39899023,0.00011715,2]
[347665900,1736040647340,-150.0,0.00011719,2]
[347665901,1736040647349,-150.0,0.00011722,2]
[347665902,1736040647359,-150.0,0.00011723,2]
[347665903,1736040647368,-326.50758743,0.00011727,2]
[347665904,1736040647377,-523.6713,0.00011728,2]
[347665905,1736040647387,-19581.9822,0.00011728,2]
[347665906,1736040647396,-150.0,0.00011731,2]
[347665907,1736040647405,-150.0,0.00011732,2]
[347665908,1736040647415,-150.0,0.00011735,2]
[347665909,1736040647426,-1500.0,0.00011735,2]
[347665910,1736040647435,-150.0,0.00011737,2]
[347665911,1736040647445,-150.0,0.00011737,2]
[347665912,1736040647454,-150.0,0.00011738,2]
[347665913,1736040647463,-150.0,0.00011742,2]
[347665914,1736040647473,-150.0,0.00011751,2]
[347665915,1736040647482,-150.0,0.00011756,2]
[347665916,1736040647491,-150.0,0.00011759,2]
[347665917,1736040647501,-150.0,0.0001176,2]
[347665918,1736040647510,-150.0,0.00011762,2]
[347665919,1736040647520,-150.0,0.00011763,2]
[347665920,1736040647530,-500.21,0.00011771,2]
[347665921,1736040647539,-627.82,0.00011771,2]
[347665922,1736040647549,-500.0,0.00011771,2]
[347665923,1736040647558,-150.0,0.00011772,2]
[347665924,1736040647567,-150.0,0.00011773,2]
[347665925,1736040647577,-150.0,0.00011773,2]
[347665926,1736040647586,-150.0,0.00011775,2]
[347665927,1736040647596,-152.32,0.00011775,2]
[347665928,1736040647605,-150.0,0.00011779,2]
[347665929,1736040647614,-150.0,0.00011779,2]
[347665930,1736040647624,-388.84100402,0.00011779,2]
[347665931,1736040647633,-150.0,0.00011779,2]
[347665932,1736040647643,-262.0,0.0001178,2]
[347665933,1736040647652,-556.0,0.00011782,2]
[347665934,1736040647662,-150.0,0.00011785,2]
[347665935,1736040647672,-150.0,0.00011785,2]
[347665936,1736040647681,-150.0,0.0001179,2]
[347665937,1736040647691,-332.63594072,0.00011792,2]
[347665938,1736040647700,-150.0,0.00011794,2]
[347665939,1736040647710,-150.0,0.00011795,2]
[347665940,1736040647719,-105.86704743,0.000118,2]
[347665941,1736040647735,-94.13295257,0.000118,2]
[347665942,1736040647744,-1000.0,0.000118,2]
[347665943,1736040647753,-923.0,0.000118,4]
[347665944,1736040647762,-230.0,0.000118,2]
[347665945,1736040647771,-365.0,0.000118,2]
[347665946,1736040647781,-150.0,0.00011802,2]
[347665947,1736040647790,-150.0,0.00011802,2]
[347665948,1736040647799,-150.0,0.00011807,2]
[347665949,1736040647809,-150.0,0.00011812,2]
[347665950,1736040647818,-150.0,0.00011813,2]
[347665951,1736040647828,-150.0,0.00011814,2]
[347665952,1736040647837,-150.0,0.00011816,2]
[347665953,1736040647846,-150.0,0.00011817,2]
[347665954,1736040647855,-150.0,0.00011817,2]
[347665955,1736040647864,-150.0,0.00011818,2]
[347665956,1736040647873,-150.0,0.00011819,2]
[347665957,1736040647883,-323.7765763,0.00011822,2]
[347665958,1736040647892,-5549.5906993,0.00011822,2]
[347665959,1736040647902,-1283.5520041,0.00011822,2]
[347665960,1736040647912,-167.6238908,0.00011822,2]
[347665961,1736040647921,-2006.3445213,0.00011822,2]
[347665962,1736040647932,-150.0,0.00011824,2]
[347665963,1736040647942,-150.0,0.00011825,2]
[347665964,1736040647951,-150.0,0.00011826,2]
[347665965,1736040647961,-666.0,0.00011827,2]
[347665966,1736040647970,-666.0,0.00011827,2]
[347665967,1736040647980,-500.0,0.00011827,2]
[347665968,1736040647989,-218.96953324,0.00011827,2]
[347665969,1736040647999,-629.05,0.00011827,2]
[347665970,1736040648008,-500.0,0.00011827,2]
[347665971,1736040648018,-500.0,0.00011827,2]
[347665972,1736040648028,-532.8,0.00011827,2]
[347665973,1736040648037,-500.0,0.00011827,2]
[347665974,1736040648047,-500.0,0.00011827,2]
[347665975,1736040648057,-500.0,0.00011827,2]
[347665976,1736040648066,-500.0,0.00011827,2]
[347665977,1736040648077,-500.0,0.00011827,2]
[347665978,1736040648087,-525.86265165,0.00011827,2]
[347665979,1736040648097,-456.80995253,0.00011827,2]
[347665980,1736040648109,-533.01157381,0.00011827,2]
[347665981,1736040648119,-500.0,0.00011827,2]
[347665982,1736040648130,-500.0,0.00011827,2]
[347665983,1736040648139,-319.28118921,0.00011827,2]
[347665984,1736040648151,-500.0,0.00011827,2]
[347665985,1736040648160,-500.0,0.00011827,2]
[347665986,1736040648170,-500.0,0.00011827,2]
[347665987,1736040648179,-500.0,0.00011827,2]
[347665988,1736040648189,-500.0,0.00011827,2]
[347665989,1736040648199,-500.0,0.00011827,2]
[347665990,1736040648208,-500.0,0.00011827,2]
[347665991,1736040648218,-500.0,0.00011827,2]
[347665992,1736040648227,-500.0,0.00011827,2]
[347665993,1736040648236,-500.0,0.00011827,2]
[347665994,1736040648246,-500.0,0.00011827,2]
[347665995,1736040648255,-500.0,0.00011827,2]
[347665996,1736040648265,-648.84232756,0.00011827,2]
[347665997,1736040648274,-500.0,0.00011827,2]
[347665998,1736040648284,-548.58,0.00011827,2]
[347665999,1736040648294,-463.7685086,0.00011827,2]
[347666000,1736040648303,-500.0,0.00011827,2]
[347666001,1736040648311,-392.90508767,0.00011827,2]
[347666002,1736040648320,-500.0,0.00011827,2]
[347666003,1736040648330,-500.0,0.00011827,2]
[347666004,1736040648340,-200.83220239,0.00011827,2]
[347666005,1736040648349,-500.0,0.00011827,2]
[347666006,1736040648358,-225.63794073,0.00011827,2]
[347666007,1736040648368,-5000.0,0.00011828,2]
[347666008,1736040648377,-150.0,0.00011828,2]
[347666009,1736040648387,-45231.45,0.00011828,2]
[347666010,1736040648396,-2000.0,0.00011828,2]
[347666011,1736040648406,-200.0,0.00011828,2]
[347666012,1736040648418,-504.99,0.00011828,2]
[347666013,1736040648427,-500.0,0.00011829,2]
[347666014,1736040648436,-500.0,0.00011829,2]
[347666015,1736040648446,-20930.9499131,0.0001183,2]
[347666258,1736041831613,-1373.36,8.336e-05,2]
[347666259,1736041831622,-2171.3908,9.8e-05,2]
[347666260,1736041831632,-500.0,9.862e-05,2]
[347666261,1736041831641,-500.0,9.862e-05,2]
[347666262,1736041831650,-500.0,9.9e-05,2]
[347666263,1736041831659,-865.1637,9.9e-05,2]
[347666264,1736041831668,-3372.25081001,9.9e-05,2]
[347666265,1736041831789,-781.55174878,9.9e-05,2]
[347666266,1736041831801,-10533.38174121,9.9e-05,2]
[347666267,1736041831810,-150.0,9.973e-05,2]
[347666268,1736041831819,-153.0,9.998e-05,2]
[347666269,1736041831829,-153.0,9.998e-05,2]
[347666270,1736041831838,-153.0,9.998e-05,2]
[347666271,1736041831847,-153.0,9.998e-05,2]
[347666272,1736041831856,-231.8788539,9.999e-05,2]
[347666273,1736041831865,-151.1261969,9.999e-05,2]
[347666274,1736041831875,-153.0,0.0001,2]
[347666275,1736041831884,-153.0,0.0001,2]
[347666276,1736041831893,-153.0,0.0001,2]
[347666277,1736041831902,-153.0,0.0001,2]
[347666278,1736041831911,-153.0,0.0001,2]
[347666279,1736041831920,-153.0,0.0001,2]
[347666280,1736041831929,-153.0,0.0001,2]
[347666281,1736041831938,-153.0,0.0001,2]
[347666282,1736041831948,-153.0,0.0001,2]
[347666283,1736041831958,-153.0,0.0001,2]
[347666284,1736041831971,-153.0,0.0001,2]
[347666285,1736041831980,-153.0,0.0001,2]
[347666286,1736041831989,-153.0,0.0001,2]
[347666287,1736041831999,-153.0,0.0001,2]
[347666288,1736041832009,-153.0,0.0001,2]
[347666289,1736041832018,-153.0,0.0001,2]
[347666290,1736041832027,-153.0,0.0001,2]
[347666291,1736041832036,-153.0,0.0001,2]
[347666292,1736041832046,-153.0,0.0001,2]
[347666293,1736041832055,-153.0,0.0001,2]
[347666294,1736041832064,-153.0,0.0001,2]
[347666295,1736041832074,-153.0,0.0001,2]
[347666296,1736041832083,-153.0,0.0001,2]
[347666297,1736041832092,-153.0,0.0001,2]
[347666298,1736041832101,-153.0,0.0001,2]
[347666299,1736041832110,-153.0,0.0001,2]
[347666300,1736041832120,-153.0,0.0001,2]
[347666301,1736041832129,-153.0,0.0001,2]
[347666302,1736041832139,-153.0,0.0001,2]
[347666303,1736041832148,-153.0,0.0001,2]
[347666304,1736041832158,-153.0,0.0001,2]
[347666305,1736041832167,-153.0,0.0001,2]
[347666306,1736041832176,-153.0,0.0001,2]
[347666307,1736041832185,-153.0,0.0001,2]
[347666308,1736041832195,-153.0,0.0001,2]
[347666309,1736041832204,-153.0,0.0001,2]
[347666310,1736041832213,-153.0,0.0001,2]
[347666311,1736041832222,-153.0,0.0001,2]
[347666312,1736041832232,-153.0,0.0001,2]
[347666313,1736041832241,-153.0,0.0001,2]
[347666314,1736041832250,-153.0,0.0001,2]
[347666315,1736041832260,-153.0,0.0001,2]
[347666316,1736041832269,-153.0,0.0001,2]
[347666317,1736041832278,-153.0,0.0001,2]
[347666318,1736041832288,-153.0,0.0001,2]
[347666319,1736041832297,-153.0,0.0001,2]
[347666320,1736041832306,-153.0,0.0001,2]
[347666321,1736041832316,-151.771848,0.0001,2]
[347666322,1736041832326,-151.771848,0.0001,2]
[347666323,1736041832335,-250.0,0.00010135,2]
[347666324,1736041832344,-3346.79,0.00010143,2]
[347666325,1736041832353,-564.05,0.00010146,2]
[347666326,1736041832363,-250.0,0.00010153,2]
[347666327,1736041832372,-181.44,0.00010333,2]
[347666328,1736041832381,-17955.21,0.00010338,2]
[347666329,1736041832390,-1000.0,0.00010355,2]
[347666330,1736041832399,-250.0,0.0001038,2]
[347666331,1736041832408,-321.33,0.00010473,2]
[347666332,1736041832418,-63710.56,0.00010475,2]
[347666333,1736041832427,-150.99,0.00010475,2]
[347666334,1736041832436,-150.99,0.00010475,2]
[347666335,1736041832446,-1821.91,0.00010475,2]
[347666336,1736041832455,-2618.44,0.00010475,2]
[347666337,1736041832464,-299.99,0.00010475,2]
[347666338,1736041832473,-2225.38,0.00010475,2]
[347666339,1736041832483,-1079.63,0.00010475,2]
[347666340,1736041832492,-999.99,0.00010475,2]
[347666341,1736041832501,-150.0,0.00010543,2]
[347666342,1736041832511,-1373.36,0.000106,2]
[347666343,1736041832520,-7755.0535981,0.00010626,4]
[347666344,1736041832530,-182.79012855,0.00010652,2]
[347666346,1736041832539,-152.81154072,0.00010652,2]
[347666348,1736041832547,-400.0,0.00010986,2]
[347666350,1736041832557,-5319.7468836,0.00011,2]
[347666352,1736041832567,-550.0,0.00011,2]
[347666354,1736041832576,-1012.9376,0.00011181,2]
[347666356,1736041832585,-500.0,0.00011232,2]
[347666357,1736041832594,-367.767,0.0001124,2]
[347666358,1736041832603,-240.68543981,0.00011623,2]
[347666359,1736041832612,-1399.2202,0.0001163,2]
[347666360,1736041832621,-1000.0,0.00011649,2]
[347666361,1736041832630,-757.27,0.00011683,2]
[347666362,1736041832639,-150.0,0.00011684,2]
[347666363,1736041832648,-150.0,0.00011685,2]
[347666364,1736041832658,-150.0,0.00011688,2]
[347666365,1736041832669,-150.0,0.00011692,2]
[347666366,1736041832678,-150.0,0.00011697,2]
[347666367,1736041832687,-5000.0,0.000117,2]
[347666368,1736041832697,-150.0,0.00011703,2]
[347666369,1736041832706,-150.0,0.00011726,2]
[347666370,1736041832715,-1500.0,0.00011727,2]
[347666371,1736041832724,-221.19080596,0.00011729,2]
[347666372,1736041832734,-500.0,0.00011729,2]
[347666373,1736041832743,-228.2275,0.00011729,2]
[347666374,1736041832752,-1307.86394135,0.0001173,2]
[347666375,1736041832761,-22954.6345,0.0001173,2]
[347666376,1736041832770,-5790.2758,0.0001173,2]
[347666377,1736041832784,-46837.4033,0.0001173,2]
[347666378,1736041832793,-2095.4077,0.0001173,2]
[347666379,1736041832802,-5716.2071,0.0001173,2]
[347666380,1736041832811,-1701.3284,0.0001173,2]
[347666381,1736041832821,-150.0,0.00011752,2]
[347666382,1736041832830,-150.0,0.0001176,2]
[347666383,1736041832839,-1509.60777301,0.00011761,2]
[347666384,1736041832848,-150.0,0.00011763,2]
[347666385,1736041832857,-150.0,0.00011766,2]
[347666386,1736041832866,-150.0,0.00011771,2]
[347666387,1736041832876,-150.0,0.00011778,2]
[347666388,1736041832885,-150.0,0.0001178,2]
[347666389,1736041832894,-321.33,0.00011782,2]
[347666390,1736041832903,-150.0,0.00011783,2]
[347666391,1736041832912,-710.40432153,0.00011785,2]
[347666392,1736041832922,-150.0,0.00011785,2]
[347666393,1736041832931,-150.0,0.00011794,2]
[347666394,1736041832939,-515.83999717,0.00011799,2]
[347666395,1736041832951,-300.28693843,0.00011799,2]
[347666396,1736041832961,-585.98134716,0.00011799,2]
[347666397,1736041832972,-500.0,0.00011799,2]
[347666398,1736041832981,-616.34038843,0.00011799,2]
[347666399,1736041832989,-500.0,0.00011799,2]
[347666400,1736041832999,-500.0,0.00011799,2]
[347666401,1736041833007,-235.5343843,0.00011799,2]
[347666402,1736041833017,-500.0,0.00011799,2]
[347666403,1736041833026,-100353.4769,0.000118,2]
[347666404,1736041833035,-2009.69,0.000118,3]
[347666405,1736041833044,-365.0,0.000118,2]
[347666406,1736041833054,-1000.0,0.000118,2]
[347666407,1736041833063,-230.0,0.000118,2]
[347666408,1736041833072,-150.0,0.00011803,2]
[347666409,1736041833082,-16149.0327411,0.00011804,2]
[347666410,1736041833091,-151.0,0.00011804,2]
[347666411,1736041833100,-150.0,0.00011809,2]
[347666412,1736041833109,-150.0,0.00011814,2]
[347666413,1736041833119,-150.0,0.00011815,2]
[347666414,1736041833129,-150.0,0.00011826,2]
[347666415,1736041833139,-1500.0,0.00011826,2]
[347666416,1736041833148,-1000.06387963,0.00011827,2]
[347666417,1736041833158,-500.0,0.00011827,2]
[347666418,1736041833168,-1574.6822927,0.00011827,2]
[347666419,1736041833177,-1409.8624789,0.00011827,2]
[347666420,1736041833187,-422.85550845,0.00011827,2]
[347666421,1736041833199,-5143.6724941,0.00011827,2]
[347666422,1736041833210,-666.0,0.00011828,2]
[347666423,1736041833222,-666.0,0.00011828,2]
[347666424,1736041833235,-667.95397468,0.00011829,2]
[347666425,1736041833248,-666.0,0.00011829,2]
[347666426,1736041833260,-666.0,0.00011829,2]
[347666427,1736041833272,-500.0,0.00011829,2]
[347666428,1736041833283,-3206.93,0.00011829,2]
[347666429,1736041833293,-661.0,0.00011829,2]
[347666430,1736041833304,-3494.18620853,0.0001183,2]
[347666431,1736041833315,-174800.68575307,0.0001183,2]
[347666432,1736041833332,-1808.55999338,0.0001183,2]
[347666433,1736041833364,-16849.60000001,0.0001183,2]
[347666434,1736041833379,-9862.18030121,0.0001183,2]
[347666435,1736041833392,-5399.46644,0.0001183,2]
[347666436,1736041833422,-8301.07724787,0.0001183,2]
[347666437,1736041833435,-3262.74950934,0.0001183,2]
[347666438,1736041833450,-11573.87285222,0.0001183,2]
[347666439,1736041833463,-2348.00548138,0.0001183,2]
[347666442,1736041837554,-1117.3037041,0.00011773,2]
[347666443,1736041837566,-179608.01403817,0.0001183,2]
[347666444,1736041837581,-258.6199603,0.0001183,2]
[347666445,1736041837681,-42912.03224951,0.0001183,2]
[347666458,1736041839608,-593.0,0.00011829,2]
[347666459,1736041839619,-34526.58111175,0.0001183,2]
[347666460,1736041839631,-319.2144755,0.0001183,2]
[347666461,1736041839643,-469.98421988,0.0001183,2]
[347666462,1736041839657,-733.60120769,0.0001183,2]
[347666463,1736041839736,-3854.00000001,0.0001183,2]
[347666464,1736041839749,-2454.873683,0.0001183,2]
[347666465,1736041839762,-290.55960311,0.0001183,2]
[347666466,1736041839774,-497.75,0.0001183,2]